[Event "*** Titled Tuesday Blitz"]
[Site "Chess.com"]
[Date "2021.03.02"]
[Round "1"]
[White "ruvat"]
[Black "Treacherous_horse64"]
[Result "0-1"]
[WhiteElo "2322"]
[BlackElo "2626"]
[TimeControl "180+1"]
[EndTime "10:07:44 PST"]
[Termination "Treacherous_horse64 won on time"]

1. d4 {[%clk 0:03:00.8]} 1... e6 {[%clk 0:02:55.2]} 2. c4 {[%clk 0:03:00.5]}
2... d5 {[%clk 0:02:55]} 3. Nf3 {[%clk 0:03:00.2]} 3... Nf6 {[%clk 0:02:53.5]}
4. g3 {[%clk 0:02:59.9]} 4... dxc4 {[%clk 0:02:49.3]} 5. Bg2 {[%clk 0:02:59.9]}
5... Be7 {[%clk 0:02:49]} 6. O-O {[%clk 0:02:59.2]} 6... O-O {[%clk 0:02:47.2]}
7. Ne5 {[%clk 0:02:59.1]} 7... Nc6 {[%clk 0:02:40.4]} 8. Nxc6 {[%clk 0:02:58.7]}
8... bxc6 {[%clk 0:02:41.3]} 9. Na3 {[%clk 0:02:58.5]} 9... Bxa3 {[%clk
0:02:30.7]} 10. bxa3 {[%clk 0:02:59.4]} 10... Nd5 {[%clk 0:02:23.7]} 11. Qa4
{[%clk 0:02:57.5]} 11... Nb6 {[%clk 0:02:08]} 12. Qxc6 {[%clk 0:02:55.7]} 12...
Rb8 {[%clk 0:02:07.9]} 13. Bf4 {[%clk 0:02:47.5]} 13... Bb7 {[%clk 0:01:59.3]}
14. Qc5 {[%clk 0:02:42.5]} 14... Bxg2 {[%clk 0:01:54.5]} 15. Kxg2 {[%clk
0:02:43.4]} 15... Qd5+ {[%clk 0:01:43.4]} 16. Kg1 {[%clk 0:02:18.2]} 16... Rbc8
{[%clk 0:01:25.1]} 17. Rfc1 {[%clk 0:02:14.1]} 17... Rfd8 {[%clk 0:01:21]} 18.
Be3 {[%clk 0:02:09.9]} 18... h5 {[%clk 0:01:10.8]} 19. h4 {[%clk 0:02:07.1]}
19... Rd6 {[%clk 0:01:03.7]} 20. Rc2 {[%clk 0:01:57.9]} 20... Rc6 {[%clk
0:01:03.2]} 21. Qb4 {[%clk 0:01:51.8]} 21... a5 {[%clk 0:01:02]} 22. Qc3 {[%clk
0:01:49.8]} 22... Qb5 {[%clk 0:01:01.8]} 23. Rb2 {[%clk 0:01:39.9]} 23... Qf5
{[%clk 0:00:50.2]} 24. Qc2 {[%clk 0:01:27.3]} 24... Qd5 {[%clk 0:00:45.2]} 25.
Rc1 {[%clk 0:01:22.6]} 25... Rd8 {[%clk 0:00:44.5]} 26. a4 {[%clk 0:01:21.9]}
26... c3 {[%clk 0:00:39]} 27. Rb5 {[%clk 0:01:17.5]} 27... Qc4 {[%clk
0:00:35.7]} 28. Rxa5 {[%clk 0:01:10.3]} 28... Nd5 {[%clk 0:00:35.7]} 29. Rb5
{[%clk 0:00:47]} 29... Nb4 {[%clk 0:00:34.9]} 30. Qb3 {[%clk 0:00:41.5]} 30...
Nxa2 {[%clk 0:00:34.2]} 31. Rc2 {[%clk 0:00:24.5]} 31... Ra8 {[%clk 0:00:15.5]}
32. Qxc4 {[%clk 0:00:20]} 32... Rxc4 {[%clk 0:00:16.4]} 33. Rxa2 {[%clk
0:00:20.1]} 33... c2 {[%clk 0:00:16.1]} 34. Bc1 {[%clk 0:00:18.7]} 34... Rxd4
{[%clk 0:00:16.2]} 35. Rxc2 {[%clk 0:00:16.3]} 35... Raxa4 {[%clk 0:00:16.4]}
36. Rbc5 {[%clk 0:00:14.9]} 36... Ra1 {[%clk 0:00:14.6]} 37. Kg2 {[%clk
0:00:14.3]} 37... Rd1 {[%clk 0:00:14]} 38. Be3 {[%clk 0:00:13.4]} 38... Rg1+
{[%clk 0:00:14.2]} 39. Kf3 {[%clk 0:00:13.6]} 39... Kh7 {[%clk 0:00:13.4]} 40.
Rxc7 {[%clk 0:00:13.6]} 40... Kg6 {[%clk 0:00:13.8]} 41. Rb7 {[%clk 0:00:12.7]}
41... Ra5 {[%clk 0:00:14.1]} 42. Ke4 {[%clk 0:00:05.8]} 42... Rf5 {[%clk
0:00:15]} 43. Bf4 {[%clk 0:00:04]} 43... Ra5 {[%clk 0:00:15.4]} 44. Rcc7 {[%clk
0:00:01.4]} 44... Ra4+ {[%clk 0:00:15.8]} 0-1

[Event "*** Titled Tuesday Blitz"]
[Site "Chess.com"]
[Date "2021.03.02"]
[Round "1"]
[White "niki_2003"]
[Black "MalyDominator"]
[Result "0-1"]
[WhiteElo "2009"]
[BlackElo "2485"]
[TimeControl "180+1"]
[EndTime "10:07:45 PST"]
[Termination "MalyDominator won by checkmate"]

1. e4 {[%clk 0:03:00.9]} 1... c5 {[%clk 0:02:59.2]} 2. Nf3 {[%clk 0:02:59.7]}
2... d6 {[%clk 0:02:59.7]} 3. d4 {[%clk 0:02:58.9]} 3... cxd4 {[%clk 0:03:00.6]}
4. Nxd4 {[%clk 0:02:58.4]} 4... Nf6 {[%clk 0:02:59.8]} 5. Nc3 {[%clk 0:02:57.1]}
5... Nc6 {[%clk 0:02:57]} 6. f3 {[%clk 0:02:51.5]} 6... e5 {[%clk 0:02:49.1]} 7.
Nb3 {[%clk 0:02:47.9]} 7... Be7 {[%clk 0:02:49.4]} 8. Be3 {[%clk 0:02:46.1]}
8... O-O {[%clk 0:02:48.9]} 9. Bc4 {[%clk 0:02:35.1]} 9... a5 {[%clk 0:02:47.8]}
10. Nd5 {[%clk 0:02:31.4]} 10... a4 {[%clk 0:02:42.3]} 11. Nd2 {[%clk 0:02:16]}
11... Na5 {[%clk 0:01:44.8]} 12. Bb6 {[%clk 0:01:54]} 12... Qd7 {[%clk
0:01:41.8]} 13. Nc7 {[%clk 0:01:39.6]} 13... Nxc4 {[%clk 0:01:28.2]} 14. Nxa8
{[%clk 0:01:38.6]} 14... Qc6 {[%clk 0:01:06.5]} 15. Nxc4 {[%clk 0:01:35]} 15...
Qxc4 {[%clk 0:01:06.7]} 16. Qd3 {[%clk 0:01:34.4]} 16... Qc6 {[%clk 0:00:57.9]}
17. O-O {[%clk 0:01:29.1]} 17... Be6 {[%clk 0:00:55.7]} 18. b3 {[%clk
0:00:51.3]} 18... Rxa8 {[%clk 0:00:54.2]} 19. Be3 {[%clk 0:00:47.5]} 19... d5
{[%clk 0:00:51.6]} 20. exd5 {[%clk 0:00:44.5]} 20... Nxd5 {[%clk 0:00:51.5]} 21.
c3 {[%clk 0:00:42.5]} 21... Nxe3 {[%clk 0:00:51]} 22. Rf2 {[%clk 0:00:37.3]}
22... Bc5 {[%clk 0:00:41.3]} 23. Re1 {[%clk 0:00:35.6]} 23... Nd5 {[%clk
0:00:35.9]} 24. c4 {[%clk 0:00:33.5]} 24... Bxf2+ {[%clk 0:00:35.6]} 25. Kxf2
{[%clk 0:00:32.6]} 25... Nf4 {[%clk 0:00:34.8]} 26. Qd2 {[%clk 0:00:30.8]} 26...
Qb6+ {[%clk 0:00:33.4]} 27. Kg3 {[%clk 0:00:30.1]} 27... Rd8 {[%clk 0:00:31.5]}
28. Qc3 {[%clk 0:00:28.8]} 28... Ng6 {[%clk 0:00:25]} 29. h4 {[%clk 0:00:26.5]}
29... h5 {[%clk 0:00:24.7]} 30. Qc1 {[%clk 0:00:17.2]} 30... Qd4 {[%clk
0:00:24.6]} 31. Qg5 {[%clk 0:00:17.2]} 31... Qf4+ {[%clk 0:00:21]} 32. Qxf4
{[%clk 0:00:15.6]} 32... exf4+ {[%clk 0:00:21.9]} 33. Kf2 {[%clk 0:00:15.4]}
33... axb3 {[%clk 0:00:22.8]} 34. Kf1 {[%clk 0:00:16.3]} 34... bxa2 {[%clk
0:00:22.5]} 35. Ra1 {[%clk 0:00:17.2]} 35... Bxc4+ {[%clk 0:00:21.4]} 36. Ke1
{[%clk 0:00:17.5]} 36... Rd6 {[%clk 0:00:20.6]} 37. Kf2 {[%clk 0:00:17.7]} 37...
Rb6 {[%clk 0:00:19.4]} 38. Ke1 {[%clk 0:00:18.1]} 38... Rb1+ {[%clk 0:00:19]}
39. Rxb1 {[%clk 0:00:18.7]} 39... axb1=Q+ {[%clk 0:00:19.1]} 40. Kd2 {[%clk
0:00:19.6]} 40... Qf1 {[%clk 0:00:18.4]} 41. Kc3 {[%clk 0:00:20.5]} 41... Qxg2
{[%clk 0:00:18.4]} 42. Kb4 {[%clk 0:00:21.4]} 42... Qxf3 {[%clk 0:00:18.8]} 43.
Kc5 {[%clk 0:00:21.4]} 43... Qd5+ {[%clk 0:00:18.6]} 44. Kb6 {[%clk 0:00:22.3]}
44... Qc6+ {[%clk 0:00:18.2]} 45. Ka7 {[%clk 0:00:23.2]} 45... b5 {[%clk
0:00:15.5]} 46. Kb8 {[%clk 0:00:24.1]} 46... b4 {[%clk 0:00:14.9]} 47. Ka7
{[%clk 0:00:25]} 47... b3 {[%clk 0:00:15.3]} 48. Kb8 {[%clk 0:00:22.2]} 48... b2
{[%clk 0:00:15.3]} 49. Ka7 {[%clk 0:00:22.2]} 49... Qa6+ {[%clk 0:00:15.6]} 50.
Kb8 {[%clk 0:00:22.2]} 50... b1=Q+ {[%clk 0:00:16.5]} 51. Kc7 {[%clk 0:00:22.8]}
51... Qbb7+ {[%clk 0:00:16.3]} 52. Kd8 {[%clk 0:00:23.1]} 52... Qaa8# {[%clk
0:00:17.2]} 0-1

[Event "*** Titled Tuesday Blitz"]
[Site "Chess.com"]
[Date "2021.03.02"]
[Round "1"]
[White "Galiev_Azat"]
[Black "Sven_Tica"]
[Result "0-1"]
[WhiteElo "2335"]
[BlackElo "2658"]
[TimeControl "180+1"]
[EndTime "10:07:48 PST"]
[Termination "Sven_Tica won on time"]

1. d4 {[%clk 0:02:56.1]} 1... d5 {[%clk 0:02:59.5]} 2. Bf4 {[%clk 0:02:56]} 2...
e6 {[%clk 0:02:59.6]} 3. e3 {[%clk 0:02:55.9]} 3... Bd6 {[%clk 0:03:00.2]} 4.
Bg3 {[%clk 0:02:52.7]} 4... Qe7 {[%clk 0:03:00.2]} 5. Nf3 {[%clk 0:02:52.4]}
5... Bxg3 {[%clk 0:02:59.6]} 6. hxg3 {[%clk 0:02:52.1]} 6... Qb4+ {[%clk
0:03:00.3]} 7. Nbd2 {[%clk 0:02:37.9]} 7... Qxb2 {[%clk 0:03:00.7]} 8. Bd3
{[%clk 0:02:29]} 8... Nf6 {[%clk 0:03:00.8]} 9. c4 {[%clk 0:02:11.8]} 9... Qa3
{[%clk 0:02:59.5]} 10. Qb3 {[%clk 0:02:05.3]} 10... Qxb3 {[%clk 0:02:58.3]} 11.
axb3 {[%clk 0:02:05.4]} 11... Nc6 {[%clk 0:02:50.8]} 12. Ne5 {[%clk 0:01:54.1]}
12... Nxe5 {[%clk 0:02:45.3]} 13. dxe5 {[%clk 0:01:54.3]} 13... Nd7 {[%clk
0:02:45.8]} 14. f4 {[%clk 0:01:50.5]} 14... g6 {[%clk 0:02:41.9]} 15. Ke2 {[%clk
0:01:46.1]} 15... c6 {[%clk 0:02:38.8]} 16. Rh6 {[%clk 0:01:40]} 16... Kf8
{[%clk 0:02:38.7]} 17. Rah1 {[%clk 0:01:39.6]} 17... Kg7 {[%clk 0:02:39.3]} 18.
Nf3 {[%clk 0:01:39]} 18... f6 {[%clk 0:02:36]} 19. Bxg6 {[%clk 0:01:35.6]} 19...
fxe5 {[%clk 0:02:31.9]} 20. fxe5 {[%clk 0:01:22.2]} 20... Nf8 {[%clk 0:02:31.7]}
21. Bd3 {[%clk 0:01:13.9]} 21... a5 {[%clk 0:02:25.1]} 22. Ng5 {[%clk
0:01:12.5]} 22... a4 {[%clk 0:02:25.2]} 23. bxa4 {[%clk 0:01:11.7]} 23... Rxa4
{[%clk 0:02:24.7]} 24. cxd5 {[%clk 0:01:03.1]} 24... exd5 {[%clk 0:02:18.2]} 25.
Nxh7 {[%clk 0:00:49.1]} 25... Bg4+ {[%clk 0:02:14.2]} 26. Kd2 {[%clk 0:00:45.8]}
26... Ra2+ {[%clk 0:02:12.4]} 27. Kc3 {[%clk 0:00:45.5]} 27... Ra3+ {[%clk
0:02:12.4]} 28. Kd2 {[%clk 0:00:42.7]} 28... Rxd3+ {[%clk 0:02:06.7]} 29. Kxd3
{[%clk 0:00:41.6]} 29... Bf5+ {[%clk 0:02:06.9]} 30. Kd4 {[%clk 0:00:29.5]}
30... Ne6+ {[%clk 0:01:52.7]} 31. Kc3 {[%clk 0:00:13.5]} 31... Rxh7 {[%clk
0:01:47.9]} 32. Rxh7+ {[%clk 0:00:09.7]} 32... Bxh7 {[%clk 0:01:48.8]} 33. Ra1
{[%clk 0:00:07.3]} 33... Be4 {[%clk 0:01:23.3]} 34. Ra7 {[%clk 0:00:06.4]} 34...
Bxg2 {[%clk 0:01:22.3]} 35. Rxb7+ {[%clk 0:00:06.3]} 35... Kg6 {[%clk
0:01:22.6]} 36. Re7 {[%clk 0:00:05.3]} 36... Kf5 {[%clk 0:01:22.4]} 37. g4+
{[%clk 0:00:03.7]} 37... Kxe5 {[%clk 0:01:22.6]} 38. Re8 {[%clk 0:00:03.3]}
38... Kd6 {[%clk 0:01:19.2]} 39. Rc8 {[%clk 0:00:02.8]} 39... Bf3 {[%clk
0:01:18]} 40. Rg8 {[%clk 0:00:02.8]} 40... c5 {[%clk 0:01:17.3]} 41. g5 {[%clk
0:00:03.1]} 41... Ke7 {[%clk 0:01:14]} 42. g6 {[%clk 0:00:02.9]} 42... Kf6
{[%clk 0:01:14.2]} 43. Rc8 {[%clk 0:00:02.9]} 43... Kxg6 {[%clk 0:01:12.6]} 44.
Rc6 {[%clk 0:00:03.2]} 44... Kf5 {[%clk 0:01:12.7]} 45. Rd6 {[%clk 0:00:03.6]}
45... Ke5 {[%clk 0:01:12.5]} 46. Rd7 {[%clk 0:00:03.4]} 46... Be2 {[%clk
0:01:04.3]} 47. Kd2 {[%clk 0:00:03.5]} 47... Bb5 {[%clk 0:01:03.6]} 48. Re7
{[%clk 0:00:03.9]} 48... Kd6 {[%clk 0:01:03.3]} 49. Rh7 {[%clk 0:00:04.1]} 49...
Ng5 {[%clk 0:01:02.6]} 50. Rh6+ {[%clk 0:00:04.3]} 50... Ke5 {[%clk 0:01:02.6]}
51. Rh5 {[%clk 0:00:04.7]} 51... Kf6 {[%clk 0:01:02.9]} 52. Rh6+ {[%clk
0:00:05]} 52... Kf5 {[%clk 0:01:02.5]} 53. Rb6 {[%clk 0:00:05]} 53... Ne4+
{[%clk 0:01:01.7]} 54. Ke1 {[%clk 0:00:05]} 54... Bc4 {[%clk 0:01:01]} 55. Rc6
{[%clk 0:00:04.8]} 55... Kg4 {[%clk 0:01:00.6]} 56. Rc8 {[%clk 0:00:04.9]} 56...
Kf3 {[%clk 0:01:00.7]} 57. Re8 {[%clk 0:00:03]} 57... Kxe3 {[%clk 0:01:00.7]}
58. Rd8 {[%clk 0:00:03.4]} 58... d4 {[%clk 0:01:00.9]} 59. Kd1 {[%clk
0:00:03.8]} 59... d3 {[%clk 0:00:59.8]} 60. Re8 {[%clk 0:00:03.7]} 60... Bb3+
{[%clk 0:00:56]} 61. Kc1 {[%clk 0:00:01.8]} 61... d2+ {[%clk 0:00:56.2]} 62. Kb2
{[%clk 0:00:01.7]} 62... d1=Q {[%clk 0:00:56.1]} 63. Ka3 {[%clk 0:00:01.4]}
63... Bd5 {[%clk 0:00:52.8]} 0-1

[Event "*** Titled Tuesday Blitz"]
[Site "Chess.com"]
[Date "2021.03.02"]
[Round "1"]
[White "kobemagic"]
[Black "FlySooHigh"]
[Result "1/2-1/2"]
[WhiteElo "2401"]
[BlackElo "2719"]
[TimeControl "180+1"]
[EndTime "10:07:49 PST"]
[Termination "Game drawn by repetition"]

1. c4 {[%clk 0:03:00.9]} 1... Nf6 {[%clk 0:02:59.5]} 2. g3 {[%clk 0:03:01.2]}
2... e6 {[%clk 0:02:56.4]} 3. Bg2 {[%clk 0:03:01.4]} 3... d5 {[%clk 0:02:56.2]}
4. Nf3 {[%clk 0:03:01.5]} 4... Be7 {[%clk 0:02:56.2]} 5. O-O {[%clk 0:03:01.2]}
5... O-O {[%clk 0:02:56.6]} 6. b3 {[%clk 0:03:01.6]} 6... b6 {[%clk 0:02:56]} 7.
d4 {[%clk 0:03:01.2]} 7... Bb7 {[%clk 0:02:55.6]} 8. Bb2 {[%clk 0:03:01.4]} 8...
Nbd7 {[%clk 0:02:55.2]} 9. Nbd2 {[%clk 0:03:00.3]} 9... c5 {[%clk 0:02:55.4]}
10. e3 {[%clk 0:02:59.7]} 10... dxc4 {[%clk 0:02:54.3]} 11. Nxc4 {[%clk
0:02:57.4]} 11... cxd4 {[%clk 0:02:53]} 12. Nxd4 {[%clk 0:02:55.6]} 12... Bxg2
{[%clk 0:02:53.9]} 13. Kxg2 {[%clk 0:02:56.1]} 13... Rc8 {[%clk 0:02:47.8]} 14.
Rc1 {[%clk 0:02:53.8]} 14... a6 {[%clk 0:02:38.4]} 15. a4 {[%clk 0:02:49.1]}
15... Nc5 {[%clk 0:02:29.7]} 16. Kg1 {[%clk 0:02:35.3]} 16... Nd5 {[%clk
0:02:23.3]} 17. Ne5 {[%clk 0:02:23.8]} 17... Bf6 {[%clk 0:02:22.7]} 18. Nec6
{[%clk 0:02:15.8]} 18... Qd7 {[%clk 0:02:15.4]} 19. b4 {[%clk 0:02:14.4]} 19...
Ne4 {[%clk 0:02:05.4]} 20. b5 {[%clk 0:02:11]} 20... axb5 {[%clk 0:02:04.2]} 21.
axb5 {[%clk 0:02:11.9]} 21... g6 {[%clk 0:01:55.4]} 22. Qc2 {[%clk 0:01:51.1]}
22... Nd6 {[%clk 0:01:45]} 23. Rfd1 {[%clk 0:01:49.2]} 23... Bg7 {[%clk
0:01:36]} 24. e4 {[%clk 0:01:46.2]} 24... Nb4 {[%clk 0:01:18.5]} 25. Qd2 {[%clk
0:01:34.9]} 25... Nxc6 {[%clk 0:01:18]} 26. bxc6 {[%clk 0:01:30.8]} 26... Qc7
{[%clk 0:01:15.4]} 27. Nxe6 {[%clk 0:01:11.9]} 27... fxe6 {[%clk 0:00:32.5]} 28.
Bxg7 {[%clk 0:01:10.2]} 28... Nxe4 {[%clk 0:00:32.7]} 29. Qd7 {[%clk 0:00:39.9]}
29... Rf7 {[%clk 0:00:32.6]} 30. Qxe6 {[%clk 0:00:34.3]} 30... Ng5 {[%clk
0:00:27.9]} 31. Qg4 {[%clk 0:00:17.6]} 31... Nf3+ {[%clk 0:00:20.7]} 32. Kg2
{[%clk 0:00:17.4]} 32... Kxg7 {[%clk 0:00:09]} 33. Rd7 {[%clk 0:00:17.2]} 33...
Ne1+ {[%clk 0:00:09.5]} 34. Kg1 {[%clk 0:00:14.1]} 34... Nf3+ {[%clk 0:00:06.5]}
35. Qxf3 {[%clk 0:00:13.6]} 35... Qxd7 {[%clk 0:00:06.5]} 36. cxd7 {[%clk
0:00:12.8]} 36... Rxc1+ {[%clk 0:00:06.3]} 37. Kg2 {[%clk 0:00:13]} 37... Rxd7
{[%clk 0:00:05.5]} 38. Qe3 {[%clk 0:00:11.6]} 38... Rcd1 {[%clk 0:00:05.4]} 39.
Qxb6 {[%clk 0:00:11.4]} 39... R1d6 {[%clk 0:00:06.3]} 40. Qe3 {[%clk 0:00:11.1]}
40... Rf6 {[%clk 0:00:06]} 41. h4 {[%clk 0:00:10.6]} 41... Rdf7 {[%clk
0:00:06.4]} 42. Qe5 {[%clk 0:00:10.4]} 42... h5 {[%clk 0:00:06.3]} 43. f4 {[%clk
0:00:10.4]} 43... Kh7 {[%clk 0:00:06.4]} 44. Kf3 {[%clk 0:00:10.2]} 44... Rf5
{[%clk 0:00:06.6]} 45. Qd4 {[%clk 0:00:09.9]} 45... R5f6 {[%clk 0:00:06.6]} 46.
Qe5 {[%clk 0:00:09.9]} 46... Rf5 {[%clk 0:00:06]} 47. Qd4 {[%clk 0:00:10.2]}
47... R5f6 {[%clk 0:00:06.6]} 48. Qe5 {[%clk 0:00:10.4]} 1/2-1/2

[Event "*** Titled Tuesday Blitz"]
[Site "Chess.com"]
[Date "2021.03.02"]
[Round "1"]
[White "Shuvalov"]
[Black "Kapibara_Warri0r"]
[Result "1-0"]
[WhiteElo "2533"]
[BlackElo "2207"]
[TimeControl "180+1"]
[EndTime "10:07:52 PST"]
[Termination "Shuvalov won by checkmate"]

1. Nf3 {[%clk 0:02:48]} 1... Nf6 {[%clk 0:02:59.7]} 2. c4 {[%clk 0:02:47.9]}
2... g6 {[%clk 0:02:59.4]} 3. Nc3 {[%clk 0:02:47.5]} 3... Bg7 {[%clk 0:02:59.5]}
4. e4 {[%clk 0:02:47.6]} 4... d6 {[%clk 0:02:56.3]} 5. d4 {[%clk 0:02:47.6]}
5... O-O {[%clk 0:02:54.5]} 6. Be2 {[%clk 0:02:47.6]} 6... e5 {[%clk 0:02:53.2]}
7. O-O {[%clk 0:02:46.8]} 7... Nc6 {[%clk 0:02:52.4]} 8. d5 {[%clk 0:02:46.3]}
8... Ne7 {[%clk 0:02:53]} 9. Ne1 {[%clk 0:02:45.8]} 9... Nd7 {[%clk 0:02:51.9]}
10. f3 {[%clk 0:02:46]} 10... f5 {[%clk 0:02:51.4]} 11. g4 {[%clk 0:02:46]}
11... Nf6 {[%clk 0:02:43.1]} 12. Nd3 {[%clk 0:02:44.2]} 12... h6 {[%clk
0:02:29.2]} 13. h4 {[%clk 0:02:43.3]} 13... Bd7 {[%clk 0:02:12]} 14. Be3 {[%clk
0:02:41.2]} 14... Qc8 {[%clk 0:02:07.8]} 15. Nf2 {[%clk 0:02:38.2]} 15... f4
{[%clk 0:02:04.2]} 16. Bd2 {[%clk 0:02:37.9]} 16... g5 {[%clk 0:02:04.9]} 17. h5
{[%clk 0:02:36]} 17... c5 {[%clk 0:01:47.9]} 18. Kg2 {[%clk 0:02:33.7]} 18...
Rf7 {[%clk 0:01:36.4]} 19. Rh1 {[%clk 0:02:33.1]} 19... Bf8 {[%clk 0:01:36]} 20.
a3 {[%clk 0:02:30.5]} 20... a5 {[%clk 0:01:35.1]} 21. Rh3 {[%clk 0:01:57]} 21...
a4 {[%clk 0:01:29]} 22. Bd3 {[%clk 0:01:56.4]} 22... b6 {[%clk 0:01:27.7]} 23.
Bc2 {[%clk 0:01:56]} 23... Qa6 {[%clk 0:01:27.5]} 24. Bd3 {[%clk 0:01:50.6]}
24... Kh7 {[%clk 0:01:26.7]} 25. Qc2 {[%clk 0:01:44]} 25... Neg8 {[%clk
0:01:04.5]} 26. Be2 {[%clk 0:01:41.7]} 26... Be7 {[%clk 0:01:00.2]} 27. Rhh1
{[%clk 0:01:40.8]} 27... Raf8 {[%clk 0:00:56.8]} 28. Rh3 {[%clk 0:01:25.4]}
28... Bd8 {[%clk 0:00:41.7]} 29. b3 {[%clk 0:01:24]} 29... axb3 {[%clk
0:00:41.3]} 30. Qxb3 {[%clk 0:01:24.9]} 30... Ne8 {[%clk 0:00:36.6]} 31. Nb5
{[%clk 0:01:23.3]} 31... Ngf6 {[%clk 0:00:33.7]} 32. a4 {[%clk 0:01:21.7]} 32...
Be7 {[%clk 0:00:28.1]} 33. a5 {[%clk 0:01:18.7]} 33... bxa5 {[%clk 0:00:28.7]}
34. Rxa5 {[%clk 0:01:18.3]} 34... Qb7 {[%clk 0:00:27.3]} 35. Qa3 {[%clk
0:01:16.6]} 35... Bxb5 {[%clk 0:00:24.1]} 36. cxb5 {[%clk 0:01:14]} 36... Bd8
{[%clk 0:00:23.4]} 37. Ra6 {[%clk 0:01:12.5]} 37... Nc7 {[%clk 0:00:19.9]} 38.
Ra7 {[%clk 0:01:07.6]} 38... Qb8 {[%clk 0:00:20.4]} 39. Qa4 {[%clk 0:01:01.3]}
39... Nxb5 {[%clk 0:00:13]} 40. Rxf7+ {[%clk 0:01:00.5]} 40... Rxf7 {[%clk
0:00:13.9]} 41. Bxb5 {[%clk 0:00:59.9]} 41... Ra7 {[%clk 0:00:13.9]} 42. Qc4
{[%clk 0:00:58.7]} 42... Rb7 {[%clk 0:00:12.7]} 43. Bc6 {[%clk 0:00:55.8]} 43...
Rb1 {[%clk 0:00:12.5]} 44. Rh1 {[%clk 0:00:54.5]} 44... Rb2 {[%clk 0:00:11.3]}
45. Rd1 {[%clk 0:00:52.2]} 45... Qa7 {[%clk 0:00:08.7]} 46. Qa4 {[%clk
0:00:50.5]} 46... Qb6 {[%clk 0:00:08.7]} 47. Qa1 {[%clk 0:00:47.9]} 47... Qb3
{[%clk 0:00:08.1]} 48. Qa7+ {[%clk 0:00:45]} 48... Kh8 {[%clk 0:00:06.9]} 49.
Qf7 {[%clk 0:00:43.5]} 49... Nxg4 {[%clk 0:00:02]} 50. Qe8+ {[%clk 0:00:33.4]}
50... Kg7 {[%clk 0:00:01.8]} 51. Qg6+ {[%clk 0:00:31.7]} 51... Kf8 {[%clk
0:00:01.9]} 52. Nxg4 {[%clk 0:00:29.5]} 52... Qxd1 {[%clk 0:00:01.1]} 53. Qxh6+
{[%clk 0:00:28.8]} 53... Ke7 {[%clk 0:00:01.4]} 54. Qe6+ {[%clk 0:00:28]} 54...
Kf8 {[%clk 0:00:01.2]} 55. Qe8+ {[%clk 0:00:27.8]} 55... Kg7 {[%clk 0:00:01.6]}
56. h6+ {[%clk 0:00:27.8]} 56... Kh7 {[%clk 0:00:02.1]} 57. Qf7+ {[%clk
0:00:27.6]} 57... Kh8 {[%clk 0:00:02.5]} 58. Qg7# {[%clk 0:00:27.8]} 1-0